[Event "*** Titled Tuesday 3|2 Blitz"]
[Site "Chess.com"]
[Date "2016.02.02"]
[Round "2"]
[White "SenseiJulio"]
[Black "gmcorrales"]
[Result "0-1"]
[WhiteElo "2541"]
[BlackElo "2474"]
[TimeControl "180+2"]
[EndTime "17:19:41 PST"]
[Termination "gmcorrales won by resignation"]

1. d4 {[%clk 0:03:01.9]} 1... d5 {[%clk 0:02:56.4]} 2. c4 {[%clk 0:03:02.9]}
2... c6 {[%clk 0:02:57]} 3. cxd5 {[%clk 0:03:03.5]} 3... cxd5 {[%clk 0:02:57.9]}
4. Bf4 {[%clk 0:03:05.2]} 4... Nf6 {[%clk 0:02:59.1]} 5. Nc3 {[%clk 0:03:05.6]}
5... a6 {[%clk 0:02:59.2]} 6. e3 {[%clk 0:03:06]} 6... Nc6 {[%clk 0:02:58.7]} 7.
Bd3 {[%clk 0:03:06.3]} 7... e6 {[%clk 0:02:58.6]} 8. Rc1 {[%clk 0:03:05.6]} 8...
Be7 {[%clk 0:02:59.2]} 9. Nf3 {[%clk 0:03:00.5]} 9... O-O {[%clk 0:02:59.8]} 10.
h3 {[%clk 0:03:00.8]} 10... Bd7 {[%clk 0:03:00.3]} 11. O-O {[%clk 0:03:01.4]}
11... Rc8 {[%clk 0:03:01.2]} 12. Qe2 {[%clk 0:02:50.4]} 12... Na5 {[%clk
0:02:58.9]} 13. Ne5 {[%clk 0:02:50.4]} 13... Bc6 {[%clk 0:02:56.3]} 14. Bg5
{[%clk 0:02:46.1]} 14... Nd7 {[%clk 0:02:38.7]} 15. Bxe7 {[%clk 0:02:36.9]}
15... Qxe7 {[%clk 0:02:40.6]} 16. f4 {[%clk 0:02:37.5]} 16... f5 {[%clk
0:02:38.7]} 17. g4 {[%clk 0:02:26.9]} 17... Nxe5 {[%clk 0:02:39.2]} 18. fxe5
{[%clk 0:02:09]} 18... Qg5 {[%clk 0:02:37.7]} 19. Rf4 {[%clk 0:01:59.8]} 19...
Nc4 {[%clk 0:02:23.8]} 20. Rcf1 {[%clk 0:01:48.5]} 20... fxg4 {[%clk 0:02:01.4]}
21. Rxf8+ {[%clk 0:01:44.9]} 21... Rxf8 {[%clk 0:02:01.6]} 22. Bxh7+ {[%clk
0:01:46.5]} 22... Kxh7 {[%clk 0:02:02.4]} 23. Rxf8 {[%clk 0:01:48.3]} 23...
gxh3+ {[%clk 0:01:58.2]} 24. Kh1 {[%clk 0:01:40]} 24... Nxe3 {[%clk 0:01:55.7]}
25. Rf3 {[%clk 0:01:40.2]} 25... Qg2+ {[%clk 0:01:37.9]} 26. Qxg2 {[%clk
0:01:40]} 26... hxg2+ {[%clk 0:01:39.8]} 27. Kg1 {[%clk 0:01:40.5]} 27... Nf5
{[%clk 0:01:41.7]} 28. Rf4 {[%clk 0:01:36.5]} 28... g5 {[%clk 0:01:41.4]} 29.
Rg4 {[%clk 0:01:26.6]} 29... Kg6 {[%clk 0:01:42.2]} 30. Ne2 {[%clk 0:01:25.8]}
30... Nh4 {[%clk 0:01:40.5]} 31. Rg3 {[%clk 0:00:57.7]} 31... Kf5 {[%clk
0:01:41.5]} 32. Kf2 {[%clk 0:00:53.1]} 32... Bb5 {[%clk 0:01:41.9]} 33. Ng1
{[%clk 0:00:51.4]} 33... g4 {[%clk 0:01:42.3]} 34. Re3 {[%clk 0:00:49.6]} 34...
Bf1 {[%clk 0:01:41.2]} 35. Rc3 {[%clk 0:00:40.3]} 35... Ke4 {[%clk 0:01:39.8]}
36. Rc7 {[%clk 0:00:39.8]} 36... Nf5 {[%clk 0:01:39.8]} 37. Rxb7 {[%clk
0:00:39.4]} 37... g3+ {[%clk 0:01:36.4]} 38. Ke1 {[%clk 0:00:39.9]} 38... Nxd4
{[%clk 0:01:37.2]} 39. Rg7 {[%clk 0:00:37.7]} 39... Nf3+ {[%clk 0:01:38.2]} 40.
Kd1 {[%clk 0:00:31.9]} 40... Nxg1 {[%clk 0:01:38.9]} 41. Rxg3 {[%clk 0:00:33]}
41... Nf3 {[%clk 0:01:40.1]} 0-1

[Event "*** Titled Tuesday 3|2 Blitz"]
[Site "Chess.com"]
[Date "2016.02.02"]
[Round "2"]
[White "AndreyOstrovskiy"]
[Black "Silent_Terror"]
[Result "1-0"]
[WhiteElo "2464"]
[BlackElo "2595"]
[TimeControl "180+2"]
[EndTime "17:19:48 PST"]
[Termination "AndreyOstrovskiy won by resignation"]

1. e4 {[%clk 0:03:01.9]} 1... e6 {[%clk 0:03:00.9]} 2. d4 {[%clk 0:03:02.5]}
2... d5 {[%clk 0:03:02.1]} 3. Nc3 {[%clk 0:03:02.9]} 3... Bb4 {[%clk 0:03:02.6]}
4. exd5 {[%clk 0:03:01.5]} 4... exd5 {[%clk 0:03:03.4]} 5. Bd3 {[%clk 0:03:02]}
5... Nf6 {[%clk 0:03:04.7]} 6. a3 {[%clk 0:02:53.5]} 6... Be7 {[%clk 0:02:55.4]}
7. Nf3 {[%clk 0:02:50.8]} 7... O-O {[%clk 0:02:56.2]} 8. h3 {[%clk 0:02:50.7]}
8... Re8 {[%clk 0:02:51.1]} 9. O-O {[%clk 0:02:49.7]} 9... Nbd7 {[%clk
0:02:43.9]} 10. Bf4 {[%clk 0:02:47.1]} 10... c6 {[%clk 0:02:38.9]} 11. Qd2
{[%clk 0:02:45.2]} 11... Nf8 {[%clk 0:02:39.6]} 12. Ne5 {[%clk 0:02:43.8]} 12...
Ng6 {[%clk 0:02:37.3]} 13. Bh2 {[%clk 0:02:40.5]} 13... Bd6 {[%clk 0:02:36]} 14.
Rae1 {[%clk 0:02:36]} 14... Qc7 {[%clk 0:02:22.4]} 15. f4 {[%clk 0:02:32.4]}
15... Bd7 {[%clk 0:02:11.9]} 16. Kh1 {[%clk 0:02:31.6]} 16... b6 {[%clk
0:02:00]} 17. Qf2 {[%clk 0:02:15.5]} 17... c5 {[%clk 0:01:49.3]} 18. Nxd7 {[%clk
0:02:02.1]} 18... Nxd7 {[%clk 0:01:36.5]} 19. Nb5 {[%clk 0:01:58.5]} 19... Qc6
{[%clk 0:01:31.1]} 20. Nxd6 {[%clk 0:01:59.3]} 20... Rxe1 {[%clk 0:01:28.1]} 21.
Rxe1 {[%clk 0:01:59.8]} 21... c4 {[%clk 0:01:23]} 22. Bf1 {[%clk 0:01:52.6]}
22... Qxd6 {[%clk 0:01:21.4]} 23. f5 {[%clk 0:01:53.5]} 23... Qf6 {[%clk
0:01:22.6]} 24. Qf3 {[%clk 0:01:48.9]} 24... Ne7 {[%clk 0:01:18.5]} 25. Bxc4
{[%clk 0:01:48.2]} 25... Rc8 {[%clk 0:00:56.1]} 26. Bd3 {[%clk 0:01:47.9]} 26...
Nc6 {[%clk 0:00:47.8]} 27. c3 {[%clk 0:01:47.9]} 27... Ne7 {[%clk 0:00:41.7]}
28. Be5 {[%clk 0:01:45]} 28... Nxe5 {[%clk 0:00:35.9]} 29. dxe5 {[%clk
0:01:45.6]} 29... Qh6 {[%clk 0:00:37.5]} 30. f6 {[%clk 0:01:43.3]} 30... Ng6
{[%clk 0:00:34.6]} 31. e6 {[%clk 0:01:19.4]} 31... fxe6 {[%clk 0:00:33]} 32. f7+
{[%clk 0:01:17.8]} 32... Kh8 {[%clk 0:00:30]} 33. Rxe6 {[%clk 0:01:16.2]} 33...
Qc1+ {[%clk 0:00:27.4]} 34. Kh2 {[%clk 0:01:17.1]} 34... Rf8 {[%clk 0:00:27.5]}
35. Bxg6 {[%clk 0:01:15.9]} 35... hxg6 {[%clk 0:00:25.9]} 36. Re8 {[%clk
0:01:16.8]} 1-0

[Event "*** Titled Tuesday 3|2 Blitz"]
[Site "Chess.com"]
[Date "2016.02.02"]
[Round "2"]
[White "Ar4uha"]
[Black "Jahonas"]
[Result "1-0"]
[WhiteElo "2406"]
[BlackElo "2193"]
[TimeControl "180+2"]
[EndTime "17:20:03 PST"]
[Termination "Ar4uha won by resignation"]

1. e4 {[%clk 0:02:57.3]} 1... c5 {[%clk 0:03:00.9]} 2. Nf3 {[%clk 0:02:58.7]}
2... d6 {[%clk 0:03:02.2]} 3. Bb5+ {[%clk 0:02:59.9]} 3... Bd7 {[%clk
0:03:02.9]} 4. c4 {[%clk 0:03:00.8]} 4... e5 {[%clk 0:03:02.7]} 5. Nc3 {[%clk
0:03:00.7]} 5... a6 {[%clk 0:03:00.9]} 6. Bxd7+ {[%clk 0:03:01.3]} 6... Nxd7
{[%clk 0:03:00.5]} 7. O-O {[%clk 0:03:01.6]} 7... Ngf6 {[%clk 0:03:01.6]} 8. d3
{[%clk 0:03:03.2]} 8... Be7 {[%clk 0:03:02.8]} 9. Qe2 {[%clk 0:02:58.2]} 9...
O-O {[%clk 0:03:03.7]} 10. Nh4 {[%clk 0:02:58.8]} 10... Nxe4 {[%clk 0:02:45.3]}
11. Qxe4 {[%clk 0:02:52.2]} 11... Bxh4 {[%clk 0:02:45]} 12. Qxb7 {[%clk
0:02:53.3]} 12... Nb6 {[%clk 0:02:27.9]} 13. f4 {[%clk 0:02:44.9]} 13... f5
{[%clk 0:01:58.4]} 14. Be3 {[%clk 0:02:36.4]} 14... Bf6 {[%clk 0:01:54.8]} 15.
Rad1 {[%clk 0:02:25.6]} 15... Kh8 {[%clk 0:01:54.4]} 16. Nd5 {[%clk 0:02:20]}
16... Nxd5 {[%clk 0:01:54.2]} 17. Qxd5 {[%clk 0:02:21.9]} 17... Rb8 {[%clk
0:01:50.2]} 18. b3 {[%clk 0:02:23.2]} 18... Qc7 {[%clk 0:01:21]} 19. fxe5 {[%clk
0:02:17.8]} 19... Bxe5 {[%clk 0:01:20.1]} 20. d4 {[%clk 0:02:19.3]} 20... cxd4
{[%clk 0:01:16.7]} 21. Bxd4 {[%clk 0:02:21.2]} 21... Rbe8 {[%clk 0:01:11.1]} 22.
Kh1 {[%clk 0:02:16]} 22... h6 {[%clk 0:01:08]} 23. Rfe1 {[%clk 0:02:06.3]} 23...
f4 {[%clk 0:01:02]} 24. Bg1 {[%clk 0:01:30.5]} 24... f3 {[%clk 0:01:00.8]} 25.
gxf3 {[%clk 0:01:31.1]} 25... Qf7 {[%clk 0:00:55.4]} 26. Qxf7 {[%clk 0:01:31.4]}
26... Rxf7 {[%clk 0:00:56.3]} 27. Rxd6 {[%clk 0:01:22.9]} 27... Bxd6 {[%clk
0:00:54.7]} 28. Rxe8+ {[%clk 0:01:24.8]} 28... Kh7 {[%clk 0:00:55.5]} 29. c5
{[%clk 0:01:22.2]} 29... Bc7 {[%clk 0:00:45.7]} 30. Kg2 {[%clk 0:01:19.2]} 30...
Rf5 {[%clk 0:00:41.5]} 31. h4 {[%clk 0:01:19.2]} 31... Kg6 {[%clk 0:00:40]} 32.
Re7 {[%clk 0:01:16]} 32... Bf4 {[%clk 0:00:36.3]} 33. Bd4 {[%clk 0:01:13.4]}
33... Kh5 {[%clk 0:00:33.6]} 34. c6 {[%clk 0:01:02.5]} 34... Rd5 {[%clk
0:00:34.2]} 35. Rd7 {[%clk 0:01:03.8]} 35... Rb5 {[%clk 0:00:21]} 36. c7 {[%clk
0:01:01.5]} 1-0

[Event "*** Titled Tuesday 3|2 Blitz"]
[Site "Chess.com"]
[Date "2016.02.02"]
[Round "2"]
[White "DeviatkinAndrey"]
[Black "Dlugy"]
[Result "1-0"]
[WhiteElo "2476"]
[BlackElo "2556"]
[TimeControl "180+2"]
[EndTime "17:20:14 PST"]
[Termination "DeviatkinAndrey won by resignation"]

1. e4 {[%clk 0:03:01.1]} 1... d5 {[%clk 0:03:01]} 2. Nc3 {[%clk 0:02:59.2]} 2...
d4 {[%clk 0:03:02]} 3. Nce2 {[%clk 0:03:00.5]} 3... g6 {[%clk 0:03:03.7]} 4. d3
{[%clk 0:02:56.1]} 4... Bg7 {[%clk 0:03:03.2]} 5. f4 {[%clk 0:02:56.5]} 5... c5
{[%clk 0:03:04]} 6. g3 {[%clk 0:02:57.3]} 6... Nc6 {[%clk 0:03:05.9]} 7. Bg2
{[%clk 0:02:58.1]} 7... e5 {[%clk 0:03:07.6]} 8. Nf3 {[%clk 0:02:59.1]} 8...
Nge7 {[%clk 0:03:08.7]} 9. O-O {[%clk 0:02:59.9]} 9... O-O {[%clk 0:03:09.7]}
10. fxe5 {[%clk 0:02:48.4]} 10... Nxe5 {[%clk 0:03:10.1]} 11. Nxe5 {[%clk
0:02:48.2]} 11... Bxe5 {[%clk 0:03:11.2]} 12. Bh6 {[%clk 0:02:49.4]} 12... Bg7
{[%clk 0:03:07.7]} 13. Qd2 {[%clk 0:02:49.5]} 13... Nc6 {[%clk 0:03:08.6]} 14.
h3 {[%clk 0:02:25.7]} 14... Ne5 {[%clk 0:03:05.8]} 15. Rf2 {[%clk 0:02:25.5]}
15... Be6 {[%clk 0:03:06.3]} 16. b3 {[%clk 0:02:25.6]} 16... f6 {[%clk
0:03:06.4]} 17. Raf1 {[%clk 0:02:18.5]} 17... g5 {[%clk 0:03:06.6]} 18. Bxg7
{[%clk 0:02:19.4]} 18... Kxg7 {[%clk 0:03:08]} 19. g4 {[%clk 0:02:12.2]} 19...
Bf7 {[%clk 0:02:48.7]} 20. Rxf6 {[%clk 0:02:04.3]} 20... Qxf6 {[%clk 0:02:49.6]}
21. Rxf6 {[%clk 0:02:05.3]} 21... Kxf6 {[%clk 0:02:51.5]} 22. b4 {[%clk
0:02:05.9]} 22... b6 {[%clk 0:02:43.5]} 23. bxc5 {[%clk 0:02:06.6]} 23... bxc5
{[%clk 0:02:44.7]} 24. Qa5 {[%clk 0:02:07.6]} 24... Rfc8 {[%clk 0:02:39.3]} 25.
Qa6+ {[%clk 0:01:59.4]} 25... Rc6 {[%clk 0:02:12.1]} 26. Qb7 {[%clk 0:02:00.1]}
26... Rac8 {[%clk 0:02:12.7]} 27. a3 {[%clk 0:02:00.5]} 27... a6 {[%clk
0:02:02.9]} 28. Ng3 {[%clk 0:01:51.7]} 28... R8c7 {[%clk 0:02:04.2]} 29. Qb8
{[%clk 0:01:52.3]} 29... Rc8 {[%clk 0:02:03.7]} 30. Qb7 {[%clk 0:01:51.9]} 30...
R8c7 {[%clk 0:02:04.6]} 31. Qb8 {[%clk 0:01:50.1]} 31... Rc8 {[%clk 0:02:05.8]}
32. Qb2 {[%clk 0:01:51.5]} 32... Bg6 {[%clk 0:02:04.2]} 33. Nf5 {[%clk
0:01:43.5]} 33... h5 {[%clk 0:01:58.6]} 34. Qb7 {[%clk 0:01:42.6]} 34... R8c7
{[%clk 0:01:59.4]} 35. Qb8 {[%clk 0:01:42.7]} 35... Rc8 {[%clk 0:02:00.2]} 36.
Qb7 {[%clk 0:01:35.5]} 36... R8c7 {[%clk 0:02:01.5]} 37. Qb3 {[%clk 0:01:28.7]}
37... hxg4 {[%clk 0:01:56.9]} 38. hxg4 {[%clk 0:01:29.2]} 38... c4 {[%clk
0:01:46.3]} 39. Qb4 {[%clk 0:01:28.5]} 39... Nxg4 {[%clk 0:01:17]} 40. Qf8+
{[%clk 0:01:25.4]} 40... Ke5 {[%clk 0:01:18.4]} 41. Ne7 {[%clk 0:01:15]} 41...
cxd3 {[%clk 0:01:12.4]} 42. Nxg6+ {[%clk 0:01:06.4]} 42... Rxg6 {[%clk
0:01:12.9]} 43. Qf5+ {[%clk 0:01:07.4]} 43... Kd6 {[%clk 0:01:13.5]} 44. Qxg6+
{[%clk 0:01:08.6]} 44... Kc5 {[%clk 0:01:11.4]} 45. cxd3 {[%clk 0:01:08.7]}
45... Ne3 {[%clk 0:01:09.7]} 46. Qxg5+ {[%clk 0:01:06.2]} 46... Kb6 {[%clk
0:01:11]} 47. Qf6+ {[%clk 0:01:07.3]} 47... Ka5 {[%clk 0:01:11.4]} 48. Qe5+
{[%clk 0:01:04.5]} 1-0

[Event "*** Titled Tuesday 3|2 Blitz"]
[Site "Chess.com"]
[Date "2016.02.02"]
[Round "2"]
[White "chessking2151"]
[Black "Assasin14"]
[Result "1-0"]
[WhiteElo "2245"]
[BlackElo "2013"]
[TimeControl "180+2"]
[EndTime "17:20:35 PST"]
[Termination "chessking2151 won by resignation"]

1. e4 {[%clk 0:03:01.9]} 1... c5 {[%clk 0:02:59.1]} 2. Nf3 {[%clk 0:03:03.1]}
2... d6 {[%clk 0:02:59.9]} 3. Bb5+ {[%clk 0:03:03]} 3... Bd7 {[%clk 0:02:58.4]}
4. Bxd7+ {[%clk 0:03:04.1]} 4... Nxd7 {[%clk 0:03:00.3]} 5. O-O {[%clk
0:03:04.7]} 5... Ngf6 {[%clk 0:03:01.9]} 6. Re1 {[%clk 0:03:05.7]} 6... e6
{[%clk 0:03:03.3]} 7. b3 {[%clk 0:03:00.2]} 7... Be7 {[%clk 0:03:03.9]} 8. Bb2
{[%clk 0:03:00.7]} 8... O-O {[%clk 0:03:04.9]} 9. d4 {[%clk 0:02:58.8]} 9...
cxd4 {[%clk 0:03:06.8]} 10. Nxd4 {[%clk 0:02:59.7]} 10... Rc8 {[%clk 0:03:06.7]}
11. c4 {[%clk 0:02:59.2]} 11... a6 {[%clk 0:03:04.7]} 12. Nc3 {[%clk 0:02:58.9]}
12... Nc5 {[%clk 0:03:01.3]} 13. Qe2 {[%clk 0:02:57.7]} 13... Qc7 {[%clk
0:02:50.6]} 14. Rad1 {[%clk 0:02:57.9]} 14... Rfd8 {[%clk 0:02:49.8]} 15. f4
{[%clk 0:02:34.3]} 15... Bf8 {[%clk 0:02:35.7]} 16. f5 {[%clk 0:02:24.7]} 16...
exf5 {[%clk 0:02:25.1]} 17. Nxf5 {[%clk 0:02:22.7]} 17... Re8 {[%clk 0:02:24.9]}
18. Qf3 {[%clk 0:02:17.8]} 18... Qc6 {[%clk 0:02:13]} 19. Nd5 {[%clk 0:02:14.8]}
19... Ncxe4 {[%clk 0:00:56.5]} 20. Rxe4 {[%clk 0:01:28.7]} 20... Nxe4 {[%clk
0:00:29]} 21. Bxg7 {[%clk 0:01:28.5]} 21... Bxg7 {[%clk 0:00:19.2]} 22. Nfe7+
{[%clk 0:01:28]} 22... Kh8 {[%clk 0:00:13.9]} 23. Nxc6 {[%clk 0:01:28.2]} 23...
bxc6 {[%clk 0:00:14.8]} 24. Nf4 {[%clk 0:01:25.8]} 24... d5 {[%clk 0:00:16]} 25.
h4 {[%clk 0:01:21.9]} 25... d4 {[%clk 0:00:15.9]} 26. Nh5 {[%clk 0:01:21.7]}
26... Nc3 {[%clk 0:00:16.1]} 27. Rf1 {[%clk 0:01:19.3]} 27... Rg8 {[%clk
0:00:13.1]} 28. Qxf7 {[%clk 0:01:18.7]} 28... Rcf8 {[%clk 0:00:14.3]} 29. Qd7
{[%clk 0:01:10]} 29... Rxf1+ {[%clk 0:00:13.8]} 30. Kxf1 {[%clk 0:01:11.2]}
30... Ne4 {[%clk 0:00:15]} 31. Nxg7 {[%clk 0:01:10.1]} 31... Ng3+ {[%clk
0:00:16.2]} 32. Kg1 {[%clk 0:01:09.3]} 32... Rxg7 {[%clk 0:00:18.1]} 33. Qd8+
{[%clk 0:01:06.6]} 33... Rg8 {[%clk 0:00:19.5]} 34. Qxd4+ {[%clk 0:01:08.3]}
34... Rg7 {[%clk 0:00:21.4]} 35. Qd8+ {[%clk 0:01:08]} 35... Rg8 {[%clk
0:00:22.7]} 36. Qf6+ {[%clk 0:01:09.7]} 36... Rg7 {[%clk 0:00:23.7]} 37. Qxc6
{[%clk 0:01:07.2]} 37... Ne2+ {[%clk 0:00:23.9]} 38. Kh2 {[%clk 0:01:08]} 38...
Nf4 {[%clk 0:00:24.3]} 39. Qe8+ {[%clk 0:01:08]} 39... Rg8 {[%clk 0:00:23.8]}
40. Qe5+ {[%clk 0:01:09.6]} 40... Rg7 {[%clk 0:00:25.3]} 41. Qxf4 {[%clk
0:01:11.3]} 41... Rg8 {[%clk 0:00:26.8]} 42. Qf6+ {[%clk 0:01:11.8]} 42... Rg7
{[%clk 0:00:28.7]} 43. h5 {[%clk 0:01:13.4]} 43... Kg8 {[%clk 0:00:29.3]} 44. h6
{[%clk 0:01:08.5]} 44... Rg6 {[%clk 0:00:29.7]} 45. Qxg6+ {[%clk 0:01:06.6]}
45... hxg6 {[%clk 0:00:30.3]} 46. c5 {[%clk 0:01:08.5]} 46... Kh8 {[%clk
0:00:31.9]} 47. c6 {[%clk 0:01:10.3]} 47... Kh7 {[%clk 0:00:32.9]} 48. c7 {[%clk
0:01:12.2]} 48... Kxh6 {[%clk 0:00:34.8]} 49. c8=Q {[%clk 0:01:13.8]} 49... Kg7
{[%clk 0:00:36.7]} 50. Qh3 {[%clk 0:01:15.3]} 50... Kf7 {[%clk 0:00:38.6]} 51.
Qc3 {[%clk 0:01:16.7]} 1-0

[Event "*** Titled Tuesday 3|2 Blitz"]
[Site "Chess.com"]
[Date "2016.02.02"]
[Round "2"]
[White "pKiLz5Rn9b"]
[Black "Quiet_Desperation"]
[Result "1-0"]
[WhiteElo "2343"]
[BlackElo "2111"]
[TimeControl "180+2"]
[EndTime "17:20:59 PST"]
[Termination "pKiLz5Rn9b won by resignation"]

1. e4 {[%clk 0:03:01.9]} 1... e6 {[%clk 0:03:00.4]} 2. d4 {[%clk 0:03:01.4]}
2... d5 {[%clk 0:03:01.5]} 3. Nd2 {[%clk 0:03:03.1]} 3... Nf6 {[%clk 0:03:02.7]}
4. e5 {[%clk 0:03:03.7]} 4... Nfd7 {[%clk 0:03:04.2]} 5. Bd3 {[%clk 0:03:05.4]}
5... c5 {[%clk 0:03:05.3]} 6. c3 {[%clk 0:03:07.2]} 6... Nc6 {[%clk 0:03:06.9]}
7. Ne2 {[%clk 0:03:08.7]} 7... cxd4 {[%clk 0:03:08.4]} 8. cxd4 {[%clk
0:03:10.4]} 8... f6 {[%clk 0:03:10.1]} 9. exf6 {[%clk 0:03:10.5]} 9... Nxf6
{[%clk 0:03:12]} 10. Nf3 {[%clk 0:03:09.6]} 10... Bd6 {[%clk 0:03:13.7]} 11. O-O
{[%clk 0:03:03.4]} 11... Qc7 {[%clk 0:03:09.5]} 12. Bg5 {[%clk 0:03:03.9]} 12...
O-O {[%clk 0:02:58.5]} 13. Bh4 {[%clk 0:03:04.8]} 13... Nh5 {[%clk 0:02:57.6]}
14. Qc2 {[%clk 0:02:58.9]} 14... h6 {[%clk 0:02:51.8]} 15. Bh7+ {[%clk
0:02:49.4]} 15... Kh8 {[%clk 0:02:48.5]} 16. Bg6 {[%clk 0:02:51.3]} 16... Rxf3
{[%clk 0:02:46.7]} 17. Bxh5 {[%clk 0:02:52]} 17... Bxh2+ {[%clk 0:02:47.3]} 18.
Kh1 {[%clk 0:02:51.8]} 18... Rf5 {[%clk 0:02:48]} 19. Bg6 {[%clk 0:02:52.7]}
19... Bd6 {[%clk 0:02:48.8]} 20. Bxf5 {[%clk 0:02:54]} 20... exf5 {[%clk
0:02:50.7]} 21. Rae1 {[%clk 0:02:54.2]} 21... Qf7 {[%clk 0:02:19.7]} 22. Bg3
{[%clk 0:02:42.5]} 22... Bb4 {[%clk 0:01:38.7]} 23. Nc3 {[%clk 0:02:42]} 23...
Bd7 {[%clk 0:01:29.2]} 24. Be5 {[%clk 0:02:27]} 24... f4 {[%clk 0:01:22]} 25. f3
{[%clk 0:01:55.6]} 25... Rc8 {[%clk 0:01:09.8]} 26. Qb3 {[%clk 0:01:42.9]} 26...
Nxe5 {[%clk 0:00:49.7]} 27. Rxe5 {[%clk 0:01:43.4]} 27... Bd6 {[%clk 0:00:46.2]}
28. Qxd5 {[%clk 0:01:22.5]} 28... Qf8 {[%clk 0:00:45.5]} 29. Ree1 {[%clk
0:01:10.9]} 29... Bc6 {[%clk 0:00:31.6]} 30. Qe6 {[%clk 0:01:04.6]} 30... Rd8
{[%clk 0:00:22.2]} 31. a3 {[%clk 0:00:39.5]} 31... Bd7 {[%clk 0:00:21.1]} 32.
Qe4 {[%clk 0:00:39]} 32... Qf7 {[%clk 0:00:19.2]} 33. Qxb7 {[%clk 0:00:34.3]}
33... Qh5+ {[%clk 0:00:16.8]} 34. Kg1 {[%clk 0:00:35.7]} 34... Bh3 {[%clk
0:00:14.4]} 35. Rf2 {[%clk 0:00:32.5]} 35... Qh4 {[%clk 0:00:13.2]} 36. Ne4
{[%clk 0:00:30.5]} 36... Bxg2 {[%clk 0:00:13.1]} 37. Kxg2 {[%clk 0:00:31.5]}
37... Be7 {[%clk 0:00:06.8]} 1-0

[Event "*** Titled Tuesday 3|2 Blitz"]
[Site "Chess.com"]
[Date "2016.02.02"]
[Round "2"]
[White "TheMagician"]
[Black "DanielRensch"]
[Result "0-1"]
[WhiteElo "2115"]
[BlackElo "2317"]
[TimeControl "180+2"]
[EndTime "17:21:18 PST"]
[Termination "DanielRensch won by checkmate"]

1. c4 {[%clk 0:03:01.9]} 1... e5 {[%clk 0:02:56.5]} 2. Nc3 {[%clk 0:03:00]} 2...
Nf6 {[%clk 0:02:50]} 3. g3 {[%clk 0:03:00.4]} 3... Nc6 {[%clk 0:02:45.4]} 4. Bg2
{[%clk 0:03:01.1]} 4... Bc5 {[%clk 0:02:45.9]} 5. e3 {[%clk 0:03:01.6]} 5... O-O
{[%clk 0:02:46.1]} 6. Nge2 {[%clk 0:03:02.7]} 6... d5 {[%clk 0:02:46.5]} 7. d4
{[%clk 0:03:03.8]} 7... exd4 {[%clk 0:02:46.7]} 8. exd4 {[%clk 0:03:05.2]} 8...
Bb4 {[%clk 0:02:40.4]} 9. cxd5 {[%clk 0:03:06.1]} 9... Nxd5 {[%clk 0:02:40.1]}
10. O-O {[%clk 0:03:07.7]} 10... Be6 {[%clk 0:02:29.9]} 11. Nf4 {[%clk
0:02:37.8]} 11... Nxc3 {[%clk 0:02:04.9]} 12. bxc3 {[%clk 0:02:36.2]} 12... Bxc3
{[%clk 0:02:05.6]} 13. Nxe6 {[%clk 0:02:28.2]} 13... fxe6 {[%clk 0:02:07.5]} 14.
Rb1 {[%clk 0:02:21.1]} 14... Bxd4 {[%clk 0:02:07.8]} 15. Qg4 {[%clk 0:01:45.9]}
15... Bb6 {[%clk 0:01:23.8]} 16. Bxc6 {[%clk 0:01:39.6]} 16... bxc6 {[%clk
0:01:23.1]} 17. Qxe6+ {[%clk 0:01:40.8]} 17... Kh8 {[%clk 0:01:24.7]} 18. Qxc6
{[%clk 0:01:40.2]} 18... Qd3 {[%clk 0:01:12.8]} 19. Rb3 {[%clk 0:01:29.8]} 19...
Qe2 {[%clk 0:01:12]} 20. Be3 {[%clk 0:01:25.1]} 20... Qxa2 {[%clk 0:01:08.2]}
21. Rc3 {[%clk 0:01:15.6]} 21... Rae8 {[%clk 0:00:55.2]} 22. Rc2 {[%clk
0:01:07.8]} 22... Qa5 {[%clk 0:00:50.8]} 23. Bxb6 {[%clk 0:01:06.4]} 23... cxb6
{[%clk 0:00:51.3]} 24. Qb7 {[%clk 0:00:59]} 24... h6 {[%clk 0:00:49.2]} 25. Rc7
{[%clk 0:00:59.3]} 25... Qe5 {[%clk 0:00:35.6]} 26. Qxa7 {[%clk 0:00:56]} 26...
b5 {[%clk 0:00:27.1]} 27. Rb7 {[%clk 0:00:57.2]} 27... Ra8 {[%clk 0:00:26.4]}
28. Qb6 {[%clk 0:00:54.3]} 28... Ra2 {[%clk 0:00:26.3]} 29. Qxb5 {[%clk
0:00:53.3]} 29... Qd4 {[%clk 0:00:26.9]} 30. Rb8 {[%clk 0:00:48.2]} 30... Rxf2
{[%clk 0:00:26.8]} 31. Rxf8+ {[%clk 0:00:41.3]} 31... Rxf8+ {[%clk 0:00:28.7]}
32. Kg2 {[%clk 0:00:43]} 32... Qd2+ {[%clk 0:00:29.6]} 33. Kh3 {[%clk
0:00:43.6]} 33... Rd8 {[%clk 0:00:30.4]} 34. Qf5 {[%clk 0:00:42.6]} 34... Qd6
{[%clk 0:00:30.8]} 35. Rf4 {[%clk 0:00:41.8]} 35... Re8 {[%clk 0:00:31.9]} 36.
Qg4 {[%clk 0:00:40.9]} 36... Qe5 {[%clk 0:00:32.1]} 37. Qf5 {[%clk 0:00:40.8]}
37... Qe2 {[%clk 0:00:32.4]} 38. Rf2 {[%clk 0:00:40.8]} 38... Qe3 {[%clk
0:00:32.8]} 39. Qf7 {[%clk 0:00:41]} 39... Re5 {[%clk 0:00:29.9]} 40. Qf8+
{[%clk 0:00:41.7]} 40... Kh7 {[%clk 0:00:30.7]} 41. Rf4 {[%clk 0:00:42]} 41...
Rh5+ {[%clk 0:00:23.4]} 42. Rh4 {[%clk 0:00:42.8]} 42... Qe6+ {[%clk 0:00:24]}
43. Kg2 {[%clk 0:00:41.9]} 43... Rf5 {[%clk 0:00:24]} 44. Qb4 {[%clk 0:00:30.8]}
44... Qe2+ {[%clk 0:00:23.6]} 45. Kh3 {[%clk 0:00:31.8]} 45... Qf1+ {[%clk
0:00:24.6]} 46. Kg4 {[%clk 0:00:32.6]} 46... Rg5# {[%clk 0:00:25.8]} 0-1